[Event "Titled Tuesday Blitz March 08 Early 2022"]
[White "Ianov, Viktor"]
[Black "Dovbnia, Nikita"]
[WhiteFideId "14102730"]
[BlackFideId "54104599"]
[WhiteElo "2161"]
[BlackElo "2111"]
[Result "1-0"]
[Round "01"]
[TimeControl "180+1"]
[Date "2022.03.09"]
[WhiteClock "0:00:57"]
[BlackClock "0:00:13"]

1. Nf3 {[%clk 0:02:53]}  Nf6 {[%clk 0:02:58]} 2. g3 {[%clk 0:02:53]}  g6 {[%clk 0:02:58]} 3. b3 {[%clk 0:02:52]}  Bg7 {[%clk 0:02:59]} 4. Bb2 {[%clk 0:02:53]}  O-O {[%clk 0:02:59]} 5. Bg2 {[%clk 0:02:53]}  c5 {[%clk 0:03:00]} 6. c4 {[%clk 0:02:52]}  Nc6 {[%clk 0:03:01]} 7. d4 {[%clk 0:02:52]}  cxd4 {[%clk 0:03:00]} 8. Nxd4 {[%clk 0:02:51]}  Qc7 {[%clk 0:03:01]} 9. O-O {[%clk 0:02:51]}  b6 {[%clk 0:03:00]} 10. Nc3 {[%clk 0:02:50]}  Bb7 {[%clk 0:03:00]} 11. Ndb5 {[%clk 0:02:50]}  Qc8 {[%clk 0:02:58]} 12. Rc1 {[%clk 0:02:48]}  d6 {[%clk 0:02:53]} 13. h3 {[%clk 0:02:46]}  a6 {[%clk 0:02:48]} 14. Na3 {[%clk 0:02:44]}  Qc7 {[%clk 0:02:43]} 15. Qd2 {[%clk 0:02:38]}  Rac8 {[%clk 0:02:41]} 16. Nd5 {[%clk 0:02:37]}  Qd8 {[%clk 0:02:30]} 17. Bxf6 {[%clk 0:02:35]}  exf6 {[%clk 0:02:28]} 18. Rfd1 {[%clk 0:02:34]}  f5 {[%clk 0:01:53]} 19. Nc2 {[%clk 0:02:31]}  b5 {[%clk 0:01:49]} 20. Nce3 {[%clk 0:02:29]}  bxc4 {[%clk 0:01:48]} 21. Nxc4 {[%clk 0:02:29]}  Ne5 {[%clk 0:01:46]} 22. Nf6+ {[%clk 0:02:20]}  Qxf6 {[%clk 0:01:35]} 23. Bxb7 {[%clk 0:02:20]}  Rcd8 {[%clk 0:01:35]} 24. Bxa6 {[%clk 0:02:09]}  Nxc4 {[%clk 0:01:24]} 25. Bxc4 {[%clk 0:02:08]}  g5 {[%clk 0:01:19]} 26. Bd5 {[%clk 0:02:05]}  f4 {[%clk 0:01:18]} 27. g4 {[%clk 0:02:04]}  h5 {[%clk 0:01:16]} 28. Kg2 {[%clk 0:02:02]}  Qe5 {[%clk 0:01:12]} 29. Rc7 {[%clk 0:01:54]}  Rde8 {[%clk 0:00:57]} 30. Bf3 {[%clk 0:01:47]}  hxg4 {[%clk 0:00:54]} 31. hxg4 {[%clk 0:01:46]}  f5 {[%clk 0:00:52]} 32. Qd5+ {[%clk 0:01:45]}  Qxd5 {[%clk 0:00:48]} 33. Rxd5 {[%clk 0:01:43]}  fxg4 {[%clk 0:00:42]} 34. Bxg4 {[%clk 0:01:42]}  Be5 {[%clk 0:00:42]} 35. b4 {[%clk 0:01:39]}  Ra8 {[%clk 0:00:41]} 36. Rd2 {[%clk 0:01:31]}  Rfb8 {[%clk 0:00:39]} 37. Rc4 {[%clk 0:01:26]}  Ra4 {[%clk 0:00:37]} 38. b5 {[%clk 0:01:23]}  Ra5 {[%clk 0:00:21]} 39. Bd7 {[%clk 0:01:19]}  Kf7 {[%clk 0:00:20]} 40. Bc6 {[%clk 0:01:18]}  Ke6 {[%clk 0:00:20]} 41. f3 {[%clk 0:01:17]}  Kf5 {[%clk 0:00:20]} 42. Rdc2 {[%clk 0:01:12]}  Ke6 {[%clk 0:00:20]} 43. Rd2 {[%clk 0:01:11]}  Kf6 {[%clk 0:00:21]} 44. Rc1 {[%clk 0:01:09]}  Rc8 {[%clk 0:00:15]} 45. Rh1 {[%clk 0:01:07]}  Rb8 {[%clk 0:00:14]} 46. Rh6+ {[%clk 0:01:06]}  Kg7 {[%clk 0:00:14]} 47. Rh2 {[%clk 0:01:03]}  Kf6 {[%clk 0:00:14]} 48. Rc2 {[%clk 0:01:02]}  Rc8 {[%clk 0:00:13]} 49. Rh6+ {[%clk 0:01:01]}  Kf7 {[%clk 0:00:13]} 50. Bd5+ {[%clk 0:01:00]}  Kg7 {[%clk 0:00:14]} 51. Rxc8 {[%clk 0:00:59]}  Kxh6 {[%clk 0:00:14]} 52. Bc4 {[%clk 0:00:58]}  Ra6 {[%clk 0:00:13]} 53. bxa6 {[%clk 0:00:57]} 1-0


[Site "https://www.chess.com"]

[Event "Titled Tuesday Blitz March 08 Early 2022"]
[White "Ibraev, Vasilij"]
[Black "Proudian, Armen"]
[WhiteFideId "4175190"]
[BlackFideId "2130734"]
[WhiteElo "2121"]
[BlackElo "2380"]
[Result "0-1"]
[Round "01"]
[TimeControl "180+1"]
[Date "2022.03.09"]
[WhiteClock "0:01:17"]
[BlackClock "0:01:49"]

1. d4 {[%clk 0:02:58]}  Nf6 {[%clk 0:02:59]} 2. Nf3 {[%clk 0:02:57]}  e6 {[%clk 0:02:59]} 3. g3 {[%clk 0:02:56]}  b5 {[%clk 0:03:00]} 4. Bg2 {[%clk 0:02:56]}  Bb7 {[%clk 0:03:00]} 5. O-O {[%clk 0:02:55]}  d5 {[%clk 0:03:01]} 6. Ne5 {[%clk 0:02:51]}  c6 {[%clk 0:02:57]} 7. a4 {[%clk 0:02:43]}  b4 {[%clk 0:02:57]} 8. c4 {[%clk 0:02:39]}  Nbd7 {[%clk 0:02:50]} 9. Nxd7 {[%clk 0:02:36]}  Qxd7 {[%clk 0:02:49]} 10. Bg5 {[%clk 0:02:34]}  dxc4 {[%clk 0:02:39]} 11. Bxf6 {[%clk 0:02:22]}  gxf6 {[%clk 0:02:39]} 12. e3 {[%clk 0:02:19]}  c5 {[%clk 0:02:37]} 13. Qc2 {[%clk 0:02:16]}  Bxg2 {[%clk 0:02:34]} 14. Kxg2 {[%clk 0:02:15]}  Qd5+ {[%clk 0:02:32]} 15. Kg1 {[%clk 0:02:11]}  cxd4 {[%clk 0:02:32]} 16. exd4 {[%clk 0:02:10]}  f5 {[%clk 0:02:22]} 17. Nd2 {[%clk 0:02:09]}  Rc8 {[%clk 0:02:21]} 18. Rac1 {[%clk 0:02:04]}  Bh6 {[%clk 0:02:19]} 19. Rcd1 {[%clk 0:01:50]}  c3 {[%clk 0:02:15]} 20. bxc3 {[%clk 0:01:48]}  Rxc3 {[%clk 0:02:16]} 21. Qb2 {[%clk 0:01:46]}  a5 {[%clk 0:02:08]} 22. Nb1 {[%clk 0:01:36]}  Rc4 {[%clk 0:02:02]} 23. Rfe1 {[%clk 0:01:33]}  O-O {[%clk 0:02:01]} 24. Qe2 {[%clk 0:01:21]}  Rxd4 {[%clk 0:01:52]} 25. Rxd4 {[%clk 0:01:17]}  Qxd4 {[%clk 0:01:53]} 26. Rd1 {[%clk 0:01:17]}  Qe4 {[%clk 0:01:49]} 0-1


[Site "https://www.chess.com"]

[Event "Titled Tuesday Blitz March 08 Early 2022"]
[White "Ismayil, Malak"]
[Black "Shahaliyev, Ismayil"]
[WhiteFideId "13412604"]
[BlackFideId "13406388"]
[WhiteElo "1879"]
[BlackElo "2105"]
[Result "0-1"]
[Round "01"]
[TimeControl "180+1"]
[Date "2022.03.09"]
[WhiteClock "0:00:21"]
[BlackClock "0:00:41"]

1. e4 {[%clk 0:02:48]}  c6 {[%clk 0:02:56]} 2. d4 {[%clk 0:02:48]}  d5 {[%clk 0:02:56]} 3. exd5 {[%clk 0:02:48]}  cxd5 {[%clk 0:02:56]} 4. Bd3 {[%clk 0:02:49]}  Nf6 {[%clk 0:02:53]} 5. c3 {[%clk 0:02:49]}  g6 {[%clk 0:02:52]} 6. h3 {[%clk 0:02:46]}  Nc6 {[%clk 0:02:50]} 7. Nf3 {[%clk 0:02:46]}  Bf5 {[%clk 0:02:49]} 8. Bb5 {[%clk 0:02:45]}  Bg7 {[%clk 0:02:47]} 9. O-O {[%clk 0:02:45]}  O-O {[%clk 0:02:48]} 10. Re1 {[%clk 0:02:42]}  Ne4 {[%clk 0:02:39]} 11. Nbd2 {[%clk 0:02:35]}  Nd6 {[%clk 0:02:37]} 12. Bxc6 {[%clk 0:02:32]}  bxc6 {[%clk 0:02:38]} 13. Qe2 {[%clk 0:02:32]}  Re8 {[%clk 0:02:38]} 14. Nb3 {[%clk 0:02:29]}  Nc4 {[%clk 0:02:32]} 15. Bf4 {[%clk 0:02:23]}  Qb6 {[%clk 0:02:28]} 16. Ne5 {[%clk 0:02:09]}  Nxe5 {[%clk 0:02:23]} 17. dxe5 {[%clk 0:02:06]}  c5 {[%clk 0:02:21]} 18. Rad1 {[%clk 0:02:03]}  Be6 {[%clk 0:02:00]} 19. Be3 {[%clk 0:01:57]}  Rec8 {[%clk 0:01:59]} 20. f4 {[%clk 0:01:54]}  a5 {[%clk 0:01:52]} 21. Qf2 {[%clk 0:01:54]}  d4 {[%clk 0:01:20]} 22. cxd4 {[%clk 0:01:50]}  cxd4 {[%clk 0:01:20]} 23. Nxd4 {[%clk 0:01:47]}  Bxa2 {[%clk 0:01:19]} 24. Rc1 {[%clk 0:01:19]}  Qb7 {[%clk 0:01:18]} 25. Rxc8+ {[%clk 0:00:57]}  Rxc8 {[%clk 0:01:17]} 26. Qd2 {[%clk 0:00:51]}  a4 {[%clk 0:01:14]} 27. Nf3 {[%clk 0:00:45]}  Bd5 {[%clk 0:01:13]} 28. Nd4 {[%clk 0:00:40]}  e6 {[%clk 0:01:07]} 29. g4 {[%clk 0:00:32]}  Bf8 {[%clk 0:01:04]} 30. Ne2 {[%clk 0:00:28]}  Bb4 {[%clk 0:01:03]} 31. Nc3 {[%clk 0:00:28]}  a3 {[%clk 0:01:03]} 32. Rc1 {[%clk 0:00:24]}  axb2 {[%clk 0:00:47]} 33. Qxb2 {[%clk 0:00:21]}  Bxc3 {[%clk 0:00:47]} 34. Qe2 {[%clk 0:00:21]}  Qb4 {[%clk 0:00:41]} 0-1


[Site "https://www.chess.com"]

[Event "Titled Tuesday Blitz March 08 Early 2022"]
[White "Jakubowski, Krzysztof"]
[Black "Polster, Christian"]
[WhiteFideId "1112848"]
[BlackFideId "12965081"]
[WhiteElo "2365"]
[BlackElo "2289"]
[Result "1-0"]
[Round "01"]
[TimeControl "180+1"]
[Date "2022.03.09"]
[WhiteClock "0:01:22"]
[BlackClock "0:00:17"]

1. d4 {[%clk 0:02:55]}  d5 {[%clk 0:02:43]} 2. c4 {[%clk 0:02:53]}  e6 {[%clk 0:02:42]} 3. Nc3 {[%clk 0:02:51]}  c6 {[%clk 0:02:28]} 4. e3 {[%clk 0:02:49]}  Nf6 {[%clk 0:02:26]} 5. Nf3 {[%clk 0:02:48]}  Bd6 {[%clk 0:02:15]} 6. Bd3 {[%clk 0:02:45]}  O-O {[%clk 0:02:09]} 7. e4 {[%clk 0:02:41]}  dxe4 {[%clk 0:01:57]} 8. Nxe4 {[%clk 0:02:40]}  Nxe4 {[%clk 0:01:56]} 9. Bxe4 {[%clk 0:02:41]}  Nd7 {[%clk 0:01:52]} 10. O-O {[%clk 0:02:35]}  Nf6 {[%clk 0:01:34]} 11. Bc2 {[%clk 0:02:33]}  h6 {[%clk 0:01:34]} 12. b3 {[%clk 0:02:29]}  c5 {[%clk 0:01:16]} 13. Bb2 {[%clk 0:02:26]}  a6 {[%clk 0:01:03]} 14. Qd3 {[%clk 0:02:17]}  Re8 {[%clk 0:00:55]} 15. Rad1 {[%clk 0:02:13]}  Qe7 {[%clk 0:00:51]} 16. Rfe1 {[%clk 0:02:03]}  b6 {[%clk 0:00:30]} 17. d5 {[%clk 0:01:54]}  Rd8 {[%clk 0:00:18]} 18. Ne5 {[%clk 0:01:41]}  Bb7 {[%clk 0:00:17]} 19. Ng4 {[%clk 0:01:22]} 1-0


[Site "https://www.chess.com"]

[Event "Titled Tuesday Blitz March 08 Early 2022"]
[White "Janturin, Artur"]
[Black "Avila Pavas, Santiago"]
[WhiteFideId "4130022"]
[BlackFideId "4437128"]
[WhiteElo "2347"]
[BlackElo "2242"]
[Result "0-1"]
[Round "01"]
[TimeControl "180+1"]
[Date "2022.03.09"]
[WhiteClock "0:00:10"]
[BlackClock "0:00:53"]

1. b3 {[%clk 0:02:55]}  e5 {[%clk 0:02:58]} 2. Bb2 {[%clk 0:02:55]}  d6 {[%clk 0:02:58]} 3. e3 {[%clk 0:02:55]}  f5 {[%clk 0:02:58]} 4. d4 {[%clk 0:02:55]}  e4 {[%clk 0:02:58]} 5. c4 {[%clk 0:02:55]}  Nf6 {[%clk 0:02:58]} 6. Nc3 {[%clk 0:02:54]}  g6 {[%clk 0:02:57]} 7. f4 {[%clk 0:02:47]}  exf3 {[%clk 0:02:49]} 8. Nxf3 {[%clk 0:02:43]}  Bh6 {[%clk 0:02:37]} 9. Qd3 {[%clk 0:01:50]}  O-O {[%clk 0:01:40]} 10. O-O-O {[%clk 0:01:06]}  Ng4 {[%clk 0:01:32]} 11. Nd5 {[%clk 0:00:19]}  c6 {[%clk 0:01:19]} 12. Nf4 {[%clk 0:00:14]}  d5 {[%clk 0:00:53]} 13. Qc2 {[%clk 0:00:10]}  Nxe3 {[%clk 0:00:53]} 0-1


[Site "https://www.chess.com"]

[Event "Titled Tuesday Blitz March 08 Early 2022"]
[White "Jones, Gawain C B"]
[Black "Iljin, Timofey"]
[WhiteFideId "409561"]
[BlackFideId "14110180"]
[WhiteElo "2657"]
[BlackElo "2396"]
[Result "1-0"]
[Round "01"]
[TimeControl "180+1"]
[Date "2022.03.08"]
[WhiteClock "0:00:19"]
[BlackClock "0:00:05"]

1. Nf3 {[%clk 0:03:00]}  f5 {[%clk 0:02:59]} 2. d3 {[%clk 0:02:54]}  Nf6 {[%clk 0:02:58]} 3. Bg5 {[%clk 0:02:54]}  e6 {[%clk 0:02:57]} 4. e4 {[%clk 0:02:53]}  fxe4 {[%clk 0:02:55]} 5. dxe4 {[%clk 0:02:54]}  Be7 {[%clk 0:02:55]} 6. Nc3 {[%clk 0:02:53]}  O-O {[%clk 0:02:55]} 7. e5 {[%clk 0:02:51]}  Nh5 {[%clk 0:02:49]} 8. Ne4 {[%clk 0:02:44]}  b6 {[%clk 0:02:41]} 9. Bd3 {[%clk 0:02:39]}  Bb7 {[%clk 0:02:36]} 10. h4 {[%clk 0:02:23]}  Nc6 {[%clk 0:02:29]} 11. Qd2 {[%clk 0:02:09]}  Nb4 {[%clk 0:02:20]} 12. O-O-O {[%clk 0:02:03]}  Nxd3+ {[%clk 0:01:52]} 13. Qxd3 {[%clk 0:02:03]}  h6 {[%clk 0:01:50]} 14. Be3 {[%clk 0:01:30]}  Nf4 {[%clk 0:01:43]} 15. Bxf4 {[%clk 0:01:22]}  Rxf4 {[%clk 0:01:44]} 16. Ng3 {[%clk 0:01:09]}  d5 {[%clk 0:01:15]} 17. Qg6 {[%clk 0:01:06]}  Qd7 {[%clk 0:01:00]} 18. Nh5 {[%clk 0:01:05]}  Rf7 {[%clk 0:01:00]} 19. Rd4 {[%clk 0:00:55]}  Raf8 {[%clk 0:00:42]} 20. Rg4 {[%clk 0:00:54]}  Bc5 {[%clk 0:00:21]} 21. Nf6+ {[%clk 0:00:43]}  Rxf6 {[%clk 0:00:20]} 22. exf6 {[%clk 0:00:44]}  d4 {[%clk 0:00:12]} 23. fxg7 {[%clk 0:00:36]}  Rd8 {[%clk 0:00:06]} 24. Qxh6 {[%clk 0:00:25]}  d3 {[%clk 0:00:03]} 25. Qh8+ {[%clk 0:00:24]}  Kf7 {[%clk 0:00:04]} 26. g8=Q+ {[%clk 0:00:23]}  Rxg8 {[%clk 0:00:04]} 27. Qxg8+ {[%clk 0:00:22]}  Kf6 {[%clk 0:00:05]} 28. Rf4+ {[%clk 0:00:19]}  Ke7 {[%clk 0:00:05]} 29. Qf8# {[%clk 0:00:19]} 1-0


[Site "https://www.chess.com"]

[Event "Titled Tuesday Blitz March 08 Early 2022"]
[White "Jumabayev, Rinat"]
[Black "Ljukin, Sergei"]
[WhiteFideId "13702661"]
[BlackFideId "14102200"]
[WhiteElo "2561"]
[BlackElo "2312"]
[Result "1-0"]
[Round "01"]
[TimeControl "180+1"]
[Date "2022.03.08"]
[WhiteClock "0:02:30"]
[BlackClock "0:02:06"]

1. d4 {[%clk 0:03:00]}  d5 {[%clk 0:02:59]} 2. c4 {[%clk 0:03:00]}  c6 {[%clk 0:02:59]} 3. Nf3 {[%clk 0:03:01]}  Nf6 {[%clk 0:02:59]} 4. Qb3 {[%clk 0:03:01]}  dxc4 {[%clk 0:02:58]} 5. Qxc4 {[%clk 0:03:02]}  b5 {[%clk 0:02:58]} 6. Qc2 {[%clk 0:03:00]}  Bb7 {[%clk 0:02:59]} 7. Bg5 {[%clk 0:03:00]}  Nbd7 {[%clk 0:02:58]} 8. Nbd2 {[%clk 0:03:00]}  e6 {[%clk 0:02:56]} 9. e3 {[%clk 0:03:00]}  h6 {[%clk 0:02:55]} 10. Bh4 {[%clk 0:02:58]}  a6 {[%clk 0:02:55]} 11. a4 {[%clk 0:02:44]}  Rc8 {[%clk 0:02:50]} 12. Be2 {[%clk 0:02:42]}  c5 {[%clk 0:02:37]} 13. d5 {[%clk 0:02:42]}  Bxd5 {[%clk 0:02:26]} 14. axb5 {[%clk 0:02:40]}  axb5 {[%clk 0:02:25]} 15. Bxb5 {[%clk 0:02:39]}  Be7 {[%clk 0:02:26]} 16. O-O {[%clk 0:02:32]}  O-O {[%clk 0:02:24]} 17. Rfd1 {[%clk 0:02:32]}  Qb6 {[%clk 0:02:06]} 18. Bxd7 {[%clk 0:02:30]} 1-0


[Site "https://www.chess.com"]

[Event "Titled Tuesday Blitz March 08 Early 2022"]
[White "Kobalia, Mikhail"]
[Black "Odegov, Artem"]
[WhiteFideId "4119150"]
[BlackFideId "34183644"]
[WhiteElo "2667"]
[BlackElo "2286"]
[Result "1-0"]
[Round "01"]
[TimeControl "180+1"]
[Date "2022.03.08"]
[WhiteClock "0:00:04"]
[BlackClock "0:00:06"]

1. e4 {[%clk 0:02:59]}  e6 {[%clk 0:02:57]} 2. d3 {[%clk 0:02:58]}  d5 {[%clk 0:02:57]} 3. Nd2 {[%clk 0:02:59]}  c5 {[%clk 0:02:57]} 4. Ngf3 {[%clk 0:03:00]}  Nc6 {[%clk 0:02:56]} 5. g3 {[%clk 0:03:00]}  g6 {[%clk 0:02:56]} 6. Bg2 {[%clk 0:03:00]}  Bg7 {[%clk 0:02:57]} 7. O-O {[%clk 0:03:01]}  Nf6 {[%clk 0:02:56]} 8. Re1 {[%clk 0:03:01]}  O-O {[%clk 0:02:56]} 9. c3 {[%clk 0:03:01]}  Re8 {[%clk 0:02:55]} 10. e5 {[%clk 0:03:01]}  Nd7 {[%clk 0:02:54]} 11. d4 {[%clk 0:03:01]}  f6 {[%clk 0:02:53]} 12. exf6 {[%clk 0:02:59]}  Qxf6 {[%clk 0:02:54]} 13. Nb3 {[%clk 0:02:58]}  c4 {[%clk 0:02:52]} 14. Bg5 {[%clk 0:02:56]}  Qf5 {[%clk 0:02:43]} 15. Nbd2 {[%clk 0:02:55]}  e5 {[%clk 0:02:30]} 16. dxe5 {[%clk 0:02:55]}  Ndxe5 {[%clk 0:02:30]} 17. Nxe5 {[%clk 0:02:53]}  Nxe5 {[%clk 0:02:30]} 18. Bf4 {[%clk 0:01:23]}  Be6 {[%clk 0:02:19]} 19. Bxe5 {[%clk 0:01:23]}  Bxe5 {[%clk 0:02:20]} 20. Nf3 {[%clk 0:01:23]}  Bf7 {[%clk 0:02:03]} 21. Nxe5 {[%clk 0:01:19]}  Rxe5 {[%clk 0:02:04]} 22. Qd4 {[%clk 0:01:19]}  Rae8 {[%clk 0:01:56]} 23. Rxe5 {[%clk 0:01:18]}  Qxe5 {[%clk 0:01:57]} 24. Qxa7 {[%clk 0:01:18]}  b5 {[%clk 0:01:41]} 25. Qb6 {[%clk 0:01:13]}  Rb8 {[%clk 0:01:19]} 26. Qc5 {[%clk 0:01:11]}  b4 {[%clk 0:01:12]} 27. Rd1 {[%clk 0:01:06]}  bxc3 {[%clk 0:01:01]} 28. bxc3 {[%clk 0:01:05]}  Qe2 {[%clk 0:00:59]} 29. Qd4 {[%clk 0:01:05]}  Rd8 {[%clk 0:00:28]} 30. a4 {[%clk 0:01:04]}  Qc2 {[%clk 0:00:25]} 31. a5 {[%clk 0:01:03]}  Qa4 {[%clk 0:00:23]} 32. Qb6 {[%clk 0:01:01]}  Qxd1+ {[%clk 0:00:22]} 33. Bf1 {[%clk 0:01:01]}  Re8 {[%clk 0:00:20]} 34. a6 {[%clk 0:01:00]}  Re1 {[%clk 0:00:19]} 35. Kg2 {[%clk 0:00:57]}  d4 {[%clk 0:00:10]} 36. Qd8+ {[%clk 0:00:33]}  Kg7 {[%clk 0:00:10]} 37. Qc7 {[%clk 0:00:33]}  Rxf1 {[%clk 0:00:07]} 38. Qe5+ {[%clk 0:00:33]}  Kf8 {[%clk 0:00:07]} 39. Qd6+ {[%clk 0:00:30]}  Ke8 {[%clk 0:00:03]} 40. Qb8+ {[%clk 0:00:29]}  Ke7 {[%clk 0:00:03]} 41. Qc7+ {[%clk 0:00:29]}  Kf6 {[%clk 0:00:03]} 42. Qf4+ {[%clk 0:00:28]}  Ke6 {[%clk 0:00:02]} 43. Qe4+ {[%clk 0:00:28]}  Kd6 {[%clk 0:00:02]} 44. Qf4+ {[%clk 0:00:28]}  Kc5 {[%clk 0:00:03]} 45. Qe5+ {[%clk 0:00:15]}  Kb6 {[%clk 0:00:03]} 46. a7 {[%clk 0:00:08]}  Rg1+ {[%clk 0:00:02]} 47. Kh3 {[%clk 0:00:09]}  Be6+ {[%clk 0:00:02]} 48. Qxe6+ {[%clk 0:00:09]}  Kxa7 {[%clk 0:00:02]} 49. Qd7+ {[%clk 0:00:08]}  Kb6 {[%clk 0:00:03]} 50. Qd6+ {[%clk 0:00:08]}  Kb5 {[%clk 0:00:03]} 51. Qb4+ {[%clk 0:00:08]}  Kc6 {[%clk 0:00:02]} 52. Qxc4+ {[%clk 0:00:09]}  Kd6 {[%clk 0:00:03]} 53. Qb4+ {[%clk 0:00:09]}  Ke5 {[%clk 0:00:04]} 54. Qe7+ {[%clk 0:00:09]}  Kd5 {[%clk 0:00:03]} 55. Qf7+ {[%clk 0:00:08]}  Ke4 {[%clk 0:00:02]} 56. Qf4+ {[%clk 0:00:06]}  Kd3 {[%clk 0:00:02]} 57. Qxd4+ {[%clk 0:00:07]}  Kc2 {[%clk 0:00:03]} 58. Qa4+ {[%clk 0:00:07]}  Kxc3 {[%clk 0:00:03]} 59. Qa5+ {[%clk 0:00:07]}  Kd3 {[%clk 0:00:03]} 60. Qd5+ {[%clk 0:00:07]}  Ke2 {[%clk 0:00:03]} 61. Qe4+ {[%clk 0:00:04]}  Kf1 {[%clk 0:00:04]} 62. g4 {[%clk 0:00:03]}  Rg2 {[%clk 0:00:03]} 63. Qxg2+ {[%clk 0:00:03]}  Ke1 {[%clk 0:00:04]} 64. Qg1+ {[%clk 0:00:03]}  Ke2 {[%clk 0:00:05]} 65. Qxd1+ {[%clk 0:00:03]}  Kxd1 {[%clk 0:00:05]} 66. f4 {[%clk 0:00:03]}  Ke2 {[%clk 0:00:06]} 67. f5 {[%clk 0:00:04]} 1-0


[Site "https://www.chess.com"]

[Event "Titled Tuesday Blitz March 08 Early 2022"]
[White "Lashkin, Jegor"]
[Black "Nguyen Hong Nhung"]
[WhiteFideId "13907808"]
[BlackFideId "12412201"]
[WhiteElo "2344"]
[BlackElo "1661"]
[Result "1-0"]
[Round "01"]
[TimeControl "180+1"]
[Date "2022.03.08"]
[WhiteClock "0:00:49"]
[BlackClock "0:00:31"]

1. Nf3 {[%clk 0:02:58]}  f5 {[%clk 0:02:59]} 2. d3 {[%clk 0:02:58]}  Nf6 {[%clk 0:02:59]} 3. e4 {[%clk 0:02:58]}  d6 {[%clk 0:02:59]} 4. exf5 {[%clk 0:02:57]}  Bxf5 {[%clk 0:03:00]} 5. d4 {[%clk 0:02:58]}  Nc6 {[%clk 0:03:00]} 6. Bd3 {[%clk 0:02:57]}  Bxd3 {[%clk 0:02:53]} 7. Qxd3 {[%clk 0:02:57]}  Qd7 {[%clk 0:02:50]} 8. O-O {[%clk 0:02:57]}  O-O-O {[%clk 0:02:48]} 9. c4 {[%clk 0:02:54]}  e5 {[%clk 0:02:46]} 10. Nc3 {[%clk 0:02:52]}  Qg4 {[%clk 0:02:41]} 11. Re1 {[%clk 0:02:33]}  exd4 {[%clk 0:02:23]} 12. Nb5 {[%clk 0:02:30]}  Kb8 {[%clk 0:02:23]} 13. Nbxd4 {[%clk 0:02:29]}  Nxd4 {[%clk 0:02:22]} 14. Nxd4 {[%clk 0:02:29]}  g6 {[%clk 0:02:14]} 15. Bg5 {[%clk 0:02:02]}  Bg7 {[%clk 0:01:39]} 16. Ne6 {[%clk 0:01:59]}  Rde8 {[%clk 0:01:39]} 17. h3 {[%clk 0:01:53]}  Qh5 {[%clk 0:01:31]} 18. f4 {[%clk 0:01:12]}  Rxe6 {[%clk 0:01:00]} 19. Rxe6 {[%clk 0:01:12]}  Rf8 {[%clk 0:00:58]} 20. Rae1 {[%clk 0:01:10]}  a6 {[%clk 0:00:54]} 21. Qd4 {[%clk 0:00:56]}  h6 {[%clk 0:00:31]} 22. Bxf6 {[%clk 0:00:53]}  Bxf6 {[%clk 0:00:31]} 23. Re8+ {[%clk 0:00:50]}  Rxe8 {[%clk 0:00:30]} 24. Rxe8+ {[%clk 0:00:49]}  Bd8 {[%clk 0:00:31]} 25. Rxd8# {[%clk 0:00:49]} 1-0


[Site "https://www.chess.com"]

[Event "Titled Tuesday Blitz March 08 Early 2022"]
[White "Leiva, Gianmarco"]
[Black "Pein, Jonathan"]
[WhiteFideId "3804399"]
[BlackFideId "417092"]
[WhiteElo "2311"]
[BlackElo "2140"]
[Result "1-0"]
[Round "01"]
[TimeControl "180+1"]
[Date "2022.03.09"]
[WhiteClock "0:01:23"]
[BlackClock "0:00:03"]

1. d4 {[%clk 0:02:53]}  c5 {[%clk 0:02:54]} 2. d5 {[%clk 0:02:52]}  g6 {[%clk 0:02:54]} 3. Nc3 {[%clk 0:02:52]}  Bg7 {[%clk 0:02:55]} 4. e4 {[%clk 0:02:52]}  d6 {[%clk 0:02:54]} 5. Nf3 {[%clk 0:02:52]}  Nf6 {[%clk 0:02:54]} 6. Nd2 {[%clk 0:02:53]}  O-O {[%clk 0:02:53]} 7. Be2 {[%clk 0:02:53]}  Na6 {[%clk 0:02:51]} 8. O-O {[%clk 0:02:52]}  Nc7 {[%clk 0:02:51]} 9. Re1 {[%clk 0:02:50]}  Rb8 {[%clk 0:02:51]} 10. a4 {[%clk 0:02:48]}  a6 {[%clk 0:02:49]} 11. a5 {[%clk 0:02:47]}  Bd7 {[%clk 0:02:49]} 12. Bf1 {[%clk 0:02:41]}  Nb5 {[%clk 0:02:49]} 13. Nxb5 {[%clk 0:02:39]}  axb5 {[%clk 0:02:50]} 14. c4 {[%clk 0:02:39]}  b4 {[%clk 0:02:40]} 15. h3 {[%clk 0:02:37]}  Ra8 {[%clk 0:02:39]} 16. Nb3 {[%clk 0:02:36]}  Qe8 {[%clk 0:02:40]} 17. Qd3 {[%clk 0:02:32]}  Ba4 {[%clk 0:02:33]} 18. e5 {[%clk 0:02:31]}  dxe5 {[%clk 0:02:32]} 19. Nxc5 {[%clk 0:02:31]}  e4 {[%clk 0:02:15]} 20. Qd2 {[%clk 0:02:04]}  Bd7 {[%clk 0:01:33]} 21. Qxb4 {[%clk 0:02:03]}  b6 {[%clk 0:01:23]} 22. Qxb6 {[%clk 0:02:02]}  Rb8 {[%clk 0:01:22]} 23. Qc7 {[%clk 0:01:58]}  Rc8 {[%clk 0:01:18]} 24. Qa7 {[%clk 0:01:57]}  Ra8 {[%clk 0:01:17]} 25. Qb6 {[%clk 0:01:57]}  Rb8 {[%clk 0:01:18]} 26. Nb7 {[%clk 0:01:58]}  Bc8 {[%clk 0:01:11]} 27. a6 {[%clk 0:01:58]}  Bxb7 {[%clk 0:00:57]} 28. axb7 {[%clk 0:01:57]}  Qd7 {[%clk 0:00:57]} 29. Ra7 {[%clk 0:01:57]}  Ne8 {[%clk 0:00:41]} 30. Bf4 {[%clk 0:01:53]}  Nd6 {[%clk 0:00:35]} 31. Bxd6 {[%clk 0:01:30]}  exd6 {[%clk 0:00:36]} 32. Rxe4 {[%clk 0:01:29]}  Bf6 {[%clk 0:00:20]} 33. Qc6 {[%clk 0:01:28]}  Qd8 {[%clk 0:00:19]} 34. b4 {[%clk 0:01:27]}  Kg7 {[%clk 0:00:18]} 35. c5 {[%clk 0:01:27]}  dxc5 {[%clk 0:00:18]} 36. bxc5 {[%clk 0:01:27]}  h5 {[%clk 0:00:19]} 37. d6 {[%clk 0:01:24]}  h4 {[%clk 0:00:10]} 38. Rea4 {[%clk 0:01:23]}  Bd4 {[%clk 0:00:03]} 1-0


[Site "https://www.chess.com"]